fUSD/lending_fUSD_20240217
["ID","MTS","AMOUNT","RATE_DAILY","PERIOD"]
[314273248,1708139452015,-515.47901637,0.00049315,60]
[314273249,1708139452025,-523.96,0.00049315,60]
[314273250,1708139452035,-526.40752635,0.00049315,60]
[314273251,1708139452044,-590.70851985,0.00049315,60]
[314273252,1708139452054,-500.0,0.00049315,60]
[314273253,1708139452063,-500.0,0.00049315,60]
[314273254,1708139452073,-548.81836257,0.00049315,60]
[314273255,1708139452082,-500.0,0.00049315,60]
[314273256,1708139452091,-500.0,0.00049315,60]
[314273257,1708139452101,-500.0,0.00049315,60]
[314273258,1708139452111,-500.0,0.00049315,60]
[314273259,1708139452120,-500.0,0.00049315,60]
[314273260,1708139452129,-500.0,0.00049315,60]
[314273261,1708139452138,-488.70689803,0.00049315,60]
[314273262,1708139452147,-500.0,0.00049315,60]
[314273263,1708139452157,-500.0,0.00049315,60]
[314273264,1708139452166,-500.0,0.00049315,60]
[314273265,1708139452175,-521.75057454,0.00049315,60]
[314273266,1708139452185,-500.0,0.00049315,60]
[314273267,1708139452194,-500.0,0.00049315,60]
[314273268,1708139452204,-528.14590144,0.00049315,60]
[314273269,1708139452213,-500.0,0.00049315,60]
[314273270,1708139452222,-584.92010592,0.00049315,60]
[314273271,1708139452231,-500.0,0.00049315,60]
[314273272,1708139452241,-500.0,0.00049315,60]
[314273273,1708139452251,-500.0,0.00049315,60]
[314273274,1708139452261,-515.27704809,0.00049315,60]
[314273275,1708139452270,-854.01,0.00049315,60]
[314273276,1708139452279,-519.18415384,0.00049315,60]
[314273277,1708139452288,-500.0,0.00049315,60]
[314273278,1708139452297,-500.0,0.00049315,60]
[314273279,1708139452306,-518.56180245,0.00049315,60]
[314273280,1708139452315,-500.0,0.00049315,60]
[314273281,1708139452324,-500.0,0.00049315,60]
[314273282,1708139452333,-500.0,0.00049315,60]
[314273283,1708139452342,-1495.02,0.00049315,60]
[314273284,1708139452351,-500.0,0.00049315,60]
[314273285,1708139452361,-500.0,0.00049315,60]
[314273286,1708139452370,-500.0,0.00049315,60]
[314273287,1708139452379,-500.0,0.00049315,60]
[314273288,1708139452388,-500.0,0.00049315,60]
[314273289,1708139452397,-1165.59,0.00049315,60]
[314273290,1708139452406,-500.0,0.00049315,60]
[314273291,1708139452415,-500.0,0.00049315,60]
[314273292,1708139452424,-500.0,0.00049315,60]
[314273293,1708139452434,-500.0,0.00049315,60]
[314273294,1708139452443,-338.67735501,0.00049315,60]
[314273295,1708139452452,-575.31813835,0.00049315,60]
[314273296,1708139452461,-312.20773967,0.00049315,60]
[314273297,1708139452471,-577.62913496,0.00049315,60]
[314273298,1708139452480,-500.0,0.00049315,60]
[314273299,1708139452489,-636.17,0.00049315,60]
[314273300,1708139452498,-500.0,0.00049315,60]
[314273301,1708139452507,-557.08115132,0.00049315,60]
[314273302,1708139452516,-500.0,0.00049315,60]
[314273303,1708139452525,-500.0,0.00049315,60]
[314273304,1708139452535,-893.76,0.00049315,60]
[314273305,1708139452545,-500.0,0.00049315,60]
[314273306,1708139452554,-622.67,0.00049315,60]
[314273307,1708139452563,-500.0,0.00049315,60]
[314273308,1708139452572,-500.0,0.00049315,60]
[314273309,1708139452581,-500.0,0.00049315,60]
[314273310,1708139452590,-3136.01,0.00049315,60]
[314273311,1708139452599,-521.3641745,0.00049315,60]
[314273312,1708139452609,-500.0,0.00049315,60]
[314273313,1708139452618,-5024.34,0.00049315,60]
[314273314,1708139452627,-500.0,0.00049315,60]
[314273315,1708139452636,-500.0,0.00049315,60]
[314273316,1708139452645,-569.8,0.00049315,60]
[314273317,1708139452655,-502.24,0.00049315,60]
[314273318,1708139452664,-513.5759273,0.00049315,60]
[314273319,1708139452673,-603.73881311,0.00049315,60]
[314273320,1708139452683,-873.0,0.00049315,60]
[314273321,1708139452783,-500.0,0.00049315,60]
[314273322,1708139452793,-556.89,0.00049315,60]
[314273323,1708139452802,-500.0,0.00049315,60]
[314273324,1708139452811,-500.0,0.00049315,60]
[314273325,1708139452820,-589.67267449,0.00049315,60]
[314273326,1708139452830,-500.0,0.00049315,60]
[314273327,1708139452839,-500.0,0.00049315,60]
[314273328,1708139452848,-590.34257876,0.00049315,60]
[314273329,1708139452857,-1593.36,0.00049315,60]
[314273330,1708139452867,-500.0,0.00049315,60]
[314273331,1708139452876,-3220.88,0.00049315,60]
[314273332,1708139452885,-519.51,0.00049315,60]
[314273333,1708139452894,-500.0,0.00049315,60]
[314273334,1708139452903,-1012.02861871,0.00049315,7]
[314273335,1708139452912,-500.0,0.00049315,60]
[314273336,1708139452922,-500.0,0.00049315,60]
[314273337,1708139452935,-543.38407889,0.00049315,60]
[314273338,1708139452945,-500.0,0.00049315,60]
[314273339,1708139452954,-937.4,0.00049315,60]
[314273340,1708139452964,-500.0,0.00049315,60]
[314273341,1708139452973,-500.0,0.00049315,60]
[314273342,1708139452983,-532.02999864,0.00049315,60]
[314273343,1708139452992,-509.19477868,0.00049315,60]
[314273344,1708139453002,-577.85,0.00049315,60]
[314273345,1708139453013,-500.0,0.00049315,60]
[314273346,1708139453023,-500.0,0.00049315,60]
[314273347,1708139453032,-1846.34,0.00049315,60]
[314273348,1708139453041,-1210.8,0.00049315,14]
[314273349,1708139453050,-500.0,0.00049315,60]
[314273350,1708139453060,-500.0,0.00049315,60]
[314273351,1708139453069,-579.65110196,0.00049315,60]
[314273352,1708139453078,-179.38634,0.00049315,60]
[314273353,1708139453088,-500.0,0.00049315,60]
[314273354,1708139453097,-500.0,0.00049315,60]
[314273355,1708139453107,-500.0,0.00049315,60]
[314273356,1708139453118,-1111.25,0.00049315,60]
[314273357,1708139453127,-526.17916288,0.00049315,60]
[314273358,1708139453136,-500.0,0.00049315,60]
[314273359,1708139453146,-783.66,0.00049315,60]
[314273360,1708139453155,-500.0,0.00049315,60]
[314273361,1708139453165,-567.1,0.00049315,60]
[314273362,1708139453174,-500.0,0.00049315,60]
[314273363,1708139453183,-500.0,0.00049315,60]
[314273364,1708139453192,-500.0,0.00049315,60]
[314273365,1708139453201,-500.0,0.00049315,60]
[314273366,1708139453210,-523.09,0.00049315,60]
[314273367,1708139453220,-1634.88,0.00049315,60]
[314273368,1708139453230,-500.0,0.00049315,60]
[314273369,1708139453239,-500.0,0.00049315,60]
[314273370,1708139453249,-500.0,0.00049315,60]
[314273371,1708139453259,-500.0,0.00049315,60]
[314273372,1708139453270,-500.0,0.00049315,60]
[314273373,1708139453279,-500.0,0.00049315,60]
[314273374,1708139453288,-500.0,0.00049315,60]
[314273375,1708139453297,-500.0,0.00049315,60]
[314273376,1708139453306,-500.0,0.00049315,60]
[314273377,1708139453315,-500.0,0.00049315,60]
[314273378,1708139453325,-500.0,0.00049315,60]
[314273379,1708139453334,-500.0,0.00049315,60]
[314273380,1708139453343,-500.0,0.00049315,60]
[314273381,1708139453352,-500.0,0.00049315,60]
[314273382,1708139453361,-500.0,0.00049315,60]
[314273383,1708139453371,-500.0,0.00049315,60]
[314273384,1708139453380,-538.14805902,0.00049315,60]
[314273385,1708139453389,-500.0,0.00049315,60]
[314273386,1708139453398,-500.0,0.00049315,60]
[314273387,1708139453407,-500.0,0.00049315,60]
[314273388,1708139453416,-500.0,0.00049315,60]
[314273389,1708139453425,-500.0,0.00049315,60]
[314273390,1708139453434,-500.0,0.00049315,60]
[314273391,1708139453445,-500.0,0.00049315,60]
[314273392,1708139453455,-2129.66,0.00049315,60]
[314273393,1708139453464,-500.0,0.00049315,60]
[314273394,1708139453473,-341.19224171,0.00049315,60]
[314273395,1708139453482,-500.0,0.00049315,60]
[314273396,1708139453492,-500.0,0.00049315,60]
[314273397,1708139453501,-500.0,0.00049315,60]
[314273398,1708139453510,-500.0,0.00049315,60]
[314273399,1708139453518,-1935.87,0.00049315,60]
[314273400,1708139453527,-437.39616331,0.00049315,60]
[314273401,1708139453536,-554.4,0.00049315,60]
[314273402,1708139453545,-500.0,0.00049315,60]
[314273403,1708139453554,-540.71057429,0.00049315,60]
[314273404,1708139453564,-972.28,0.00049315,60]
[314273405,1708139453573,-500.0,0.00049315,60]
[314273406,1708139453582,-577.36,0.00049315,60]
[314273407,1708139453591,-240.20627516,0.00049315,60]
[314273408,1708139453600,-500.0,0.00049315,60]
[314273409,1708139453609,-1034.46,0.00049315,60]
[314273410,1708139453618,-504.72631277,0.00049315,5]
[314273411,1708139453628,-1000.0,0.00049315,2]
[314273412,1708139453637,-500.0,0.00049315,60]
[314273413,1708139453646,-500.0,0.00049315,60]
[314273414,1708139453655,-543.65870553,0.00049315,60]
[314273415,1708139453664,-632.23342803,0.00049315,60]
[314273416,1708139453673,-500.0,0.00049315,60]
[314273417,1708139453682,-500.0,0.00049315,60]
[314273418,1708139453691,-624.32200642,0.00049315,60]
[314273419,1708139453700,-500.0,0.00049315,60]
[314273420,1708139453709,-534.55759218,0.00049315,60]
[314273421,1708139453719,-500.0,0.00049315,60]
[314273422,1708139453728,-561.12639382,0.00049315,60]
[314273423,1708139453737,-692.92,0.00049315,60]
[314273424,1708139453746,-879.44,0.00049315,60]
[314273425,1708139453756,-718.43,0.00049315,60]
[314273426,1708139453765,-500.0,0.00049315,60]
[314273427,1708139453774,-534.08277317,0.00049315,60]
[314273428,1708139453784,-500.0,0.00049315,60]
[314273429,1708139453793,-500.0,0.00049315,60]
[314273430,1708139453802,-564.38431962,0.00049315,60]
[314273431,1708139453811,-5123.64,0.00049315,60]
[314273432,1708139453820,-477.79030947,0.00049315,60]
[314273433,1708139453830,-500.0,0.00049315,60]
[314273434,1708139453839,-535.20010004,0.00049315,60]
[314273435,1708139453848,-500.0,0.00049315,60]
[314273436,1708139453859,-500.0,0.00049315,60]
[314273437,1708139453868,-1145.97,0.00049315,60]
[314273438,1708139453878,-12479.19,0.00049315,60]
[314273439,1708139453887,-500.0,0.00049315,60]
[314273440,1708139453897,-738.56,0.00049315,60]
[314273441,1708139453906,-500.0,0.00049315,60]
[314273442,1708139453915,-500.0,0.00049315,60]
[314273443,1708139453926,-209.38499458,0.00049315,2]
[314273444,1708139453939,-500.0,0.00049315,60]
[314273445,1708139453949,-500.0,0.00049315,60]
[314273446,1708139453958,-500.0,0.00049315,60]
[314273447,1708139453969,-500.0,0.00049315,60]
[314273448,1708139453978,-500.0,0.00049315,60]
[314273449,1708139453987,-500.0,0.00049315,60]
[314273450,1708139453996,-500.0,0.00049315,60]
[314273451,1708139454007,-548.51,0.00049315,60]
[314273452,1708139454018,-391.01375888,0.00049315,60]
[314273453,1708139454027,-539.67913996,0.00049315,60]
[314273454,1708139454036,-500.0,0.00049315,60]
[314273455,1708139454045,-500.0,0.00049315,60]
[314273456,1708139454054,-157.127071,0.00049315,120]
[314273457,1708139454063,-152.224954,0.00049315,120]
[314273458,1708139454073,-151.0,0.00049315,120]
[314273459,1708139454081,-151.088357,0.00049315,120]
[314273460,1708139454090,-151.497468,0.00049315,120]
[314273461,1708139454100,-151.0,0.00049315,7]
[314273462,1708139454110,-151.0,0.00049315,7]
[314273463,1708139454119,-151.0,0.00049315,30]
[314273464,1708139454128,-151.0,0.00049315,30]
[314273465,1708139454137,-247.80605,0.00049315,30]
[314273466,1708139454147,-280.099765,0.00049315,120]
[314273467,1708139454156,-280.099765,0.00049315,120]
[314273468,1708139454165,-280.099765,0.00049315,120]
[314273469,1708139454174,-280.099765,0.00049315,120]
[314273470,1708139454183,-280.099765,0.00049315,120]
[314273471,1708139454192,-280.099765,0.00049315,120]
[314273472,1708139454201,-280.099765,0.00049315,120]
[314273473,1708139454210,-280.099765,0.00049315,120]
[314273474,1708139454218,-280.099765,0.00049315,120]
[314273475,1708139454228,-280.099765,0.00049315,120]
[314273476,1708139454237,-280.099765,0.00049315,120]
[314273477,1708139454246,-280.099765,0.00049315,120]
[314273478,1708139454254,-280.099765,0.00049315,120]
[314273479,1708139454264,-280.099765,0.00049315,120]
[314273480,1708139454273,-280.099765,0.00049315,120]
[314273481,1708139454282,-280.099765,0.00049315,120]
[314273482,1708139454291,-280.099765,0.00049315,120]
[314273483,1708139454300,-280.099765,0.00049315,120]
[314273484,1708139454309,-151.0,0.00049315,120]
[314273485,1708139454319,-280.099765,0.00049315,120]
[314273486,1708139454328,-151.0,0.00049315,120]
[314273487,1708139454337,-151.0,0.00049315,120]
[314273488,1708139454429,-280.09977,0.00049315,120]
[314273489,1708139454439,-151.062276,0.00049315,120]
[314273490,1708139454448,-151.0,0.00049315,120]
[314273491,1708139454457,-164.287937,0.00049315,120]
[314273492,1708139454466,-151.0,0.00049315,7]
[314273493,1708139454475,-151.0,0.00049315,7]
[314273494,1708139454483,-151.0,0.00049315,7]
[314273495,1708139454492,-151.0,0.00049315,7]
[314273496,1708139454501,-151.0,0.00049315,7]
[314273497,1708139454511,-188.996617,0.00049315,7]
[314273498,1708139454520,-151.0,0.00049315,120]
[314273499,1708139454529,-151.0,0.00049315,120]
[314273500,1708139454538,-151.0,0.00049315,120]
[314273501,1708139454547,-151.0,0.00049315,120]
[314273502,1708139454556,-177.90668985,0.00049315,120]
[314273503,1708139454565,-151.0,0.00049315,7]
[314273504,1708139454574,-151.0,0.00049315,7]
[314273505,1708139454583,-151.0,0.00049315,7]
[314273506,1708139454592,-197.003683,0.00049315,7]
[314273507,1708139454601,-153.078906,0.00049315,120]
[314273508,1708139454611,-154.398036,0.00049315,120]
[314273509,1708139454620,-151.0,0.00049315,120]
[314273510,1708139454629,-151.0,0.00049315,120]
[314273511,1708139454638,-151.0,0.00049315,120]
[314273512,1708139454648,-151.0,0.00049315,120]
[314273513,1708139454657,-151.07077,0.00049315,120]
[314273514,1708139454666,-151.0,0.00049315,120]
[314273515,1708139454675,-151.0,0.00049315,120]
[314273516,1708139454685,-151.0,0.00049315,120]
[314273517,1708139454695,-152.124997,0.00049315,120]
[314273518,1708139454704,-151.0,0.00049315,120]
[314273519,1708139454713,-151.0,0.00049315,120]
[314273520,1708139454722,-151.0,0.00049315,120]
[314273521,1708139454731,-183.914107,0.00049315,120]
[314273522,1708139454741,-151.45213,0.00049315,120]
[314273523,1708139454750,-151.0,0.00049315,120]
[314273524,1708139454759,-151.0,0.00049315,120]
[314273525,1708139454769,-151.0,0.00049315,120]
[314273526,1708139454778,-161.964562,0.00049315,120]
[314273527,1708139454787,-151.0,0.00049315,120]
[314273528,1708139454797,-151.0,0.00049315,120]
[314273529,1708139454806,-151.0,0.00049315,120]
[314273530,1708139454815,-151.0,0.00049315,120]
[314273531,1708139454825,-171.736692,0.00049315,120]
[314273532,1708139454833,-151.0,0.00049315,120]
[314273533,1708139454842,-152.071393,0.00049315,120]
[314273534,1708139454851,-151.0,0.00049315,120]
[314273535,1708139454861,-151.0,0.00049315,120]
[314273536,1708139454870,-151.0,0.00049315,120]
[314273537,1708139454879,-151.0,0.00049315,120]
[314273538,1708139454887,-151.0,0.00049315,120]
[314273539,1708139454897,-151.0,0.00049315,120]
[314273540,1708139454906,-151.0,0.00049315,120]
[314273541,1708139454915,-151.0,0.00049315,120]
[314273542,1708139454925,-151.0,0.00049315,120]
[314273543,1708139454938,-151.0,0.00049315,120]
[314273544,1708139454947,-151.0,0.00049315,120]
[314273545,1708139454956,-175.694975,0.00049315,120]
[314273546,1708139454966,-193.931421,0.00049315,21]
[314273547,1708139454976,-151.0,0.00049315,120]
[314273548,1708139454986,-151.0,0.00049315,120]
[314273549,1708139454996,-151.0,0.00049315,120]
[314273550,1708139455006,-151.0,0.00049315,120]
[314273551,1708139455017,-151.0,0.00049315,120]
[314273552,1708139455026,-151.0,0.00049315,120]
[314273553,1708139455036,-190.842127,0.00049315,120]
[314273554,1708139455046,-151.0,0.00049315,120]
[314273555,1708139455056,-151.0,0.00049315,120]
[314273556,1708139455065,-151.0,0.00049315,120]
[314273557,1708139455075,-151.0,0.00049315,120]
[314273558,1708139455084,-151.0,0.00049315,120]
[314273559,1708139455093,-151.0,0.00049315,120]
[314273560,1708139455102,-151.0,0.00049315,120]
[314273561,1708139455111,-151.0,0.00049315,120]
[314273562,1708139455120,-151.0,0.00049315,120]
[314273563,1708139455129,-151.0,0.00049315,120]
[314273564,1708139455138,-151.0,0.00049315,120]
[314273565,1708139455147,-151.0,0.00049315,120]
[314273566,1708139455157,-230.473007,0.00049315,120]
[314273567,1708139455166,-152.252516,0.00049315,7]
[314273568,1708139455175,-274.57544575,0.00049315,120]
[314273569,1708139455184,-212.928809,0.00049315,120]
[314273570,1708139455194,-449.910329,0.00049315,120]
[314273571,1708139455203,-449.910329,0.00049315,120]
[314273572,1708139455212,-449.910329,0.00049315,120]
[314273573,1708139455221,-449.910329,0.00049315,120]
[314273574,1708139455229,-449.910329,0.00049315,120]
[314273575,1708139455238,-449.910329,0.00049315,120]
[314273576,1708139455248,-449.910329,0.00049315,120]
[314273577,1708139455257,-151.0,0.00049315,120]
[314273578,1708139455267,-449.910329,0.00049315,120]
[314273579,1708139455276,-151.0,0.00049315,120]
[314273580,1708139455286,-449.910329,0.00049315,120]
[314273581,1708139455294,-151.0,0.00049315,120]
[314273582,1708139455304,-449.910329,0.00049315,120]
[314273583,1708139455313,-151.0,0.00049315,120]
[314273584,1708139455323,-151.0,0.00049315,120]
[314273585,1708139455332,-449.910329,0.00049315,120]
[314273586,1708139455342,-449.910329,0.00049315,120]
[314273587,1708139455351,-449.910329,0.00049315,120]
[314273588,1708139455360,-151.0,0.00049315,120]
[314273589,1708139455369,-449.910329,0.00049315,120]
[314273590,1708139455378,-151.0,0.00049315,120]
[314273591,1708139455387,-449.910329,0.00049315,120]
[314273592,1708139455396,-151.0,0.00049315,120]
[314273593,1708139455405,-449.910329,0.00049315,120]
[314273594,1708139455414,-151.0,0.00049315,120]
[314273595,1708139455424,-449.910329,0.00049315,120]
[314273596,1708139455433,-449.910329,0.00049315,120]
[314273597,1708139455442,-151.0,0.00049315,120]
[314273598,1708139455451,-449.910329,0.00049315,120]
[314273599,1708139455460,-151.0,0.00049315,120]
[314273600,1708139455469,-449.910336,0.00049315,120]
[314273601,1708139455478,-281.391761,0.00049315,120]
[314273602,1708139455488,-151.0,0.00049315,120]
[314273603,1708139455497,-151.0,0.00049315,120]
[314273604,1708139455506,-151.0,0.00049315,120]
[314273605,1708139455516,-151.0,0.00049315,120]
[314273606,1708139455525,-151.0,0.00049315,120]
[314273607,1708139455534,-151.0,0.00049315,120]
[314273608,1708139455543,-151.0,0.00049315,120]
[314273609,1708139455552,-215.362605,0.00049315,120]
[314273610,1708139455561,-164.867026,0.00049315,120]
[314273611,1708139455570,-151.0,0.00049315,120]
[314273612,1708139455579,-151.0,0.00049315,120]
[314273613,1708139455589,-161.241586,0.00049315,120]
[314273614,1708139455598,-151.866144,0.00049315,120]
[314273615,1708139455607,-151.0,0.00049315,30]
[314273616,1708139455616,-165.37522,0.00049315,30]
[314273617,1708139455625,-151.148843,0.00049315,2]
[314273618,1708139455635,-151.148843,0.00049315,2]
[314273619,1708139455643,-151.148843,0.00049315,2]
[314273620,1708139455652,-151.148843,0.00049315,2]
[314273621,1708139455661,-151.148843,0.00049315,2]
[314273622,1708139455670,-151.148843,0.00049315,2]
[314273623,1708139455679,-151.148843,0.00049315,2]
[314273624,1708139455688,-151.0,0.00049315,14]
[314273625,1708139455697,-151.148843,0.00049315,2]
[314273626,1708139455706,-153.605656,0.00049315,14]
[314273627,1708139455715,-151.148843,0.00049315,2]
[314273628,1708139455724,-151.148843,0.00049315,2]
[314273629,1708139455733,-151.148843,0.00049315,2]
[314273630,1708139455742,-151.148843,0.00049315,2]
[314273631,1708139455751,-151.148843,0.00049315,2]
[314273632,1708139455762,-151.148843,0.00049315,2]
[314273633,1708139455771,-151.148843,0.00049315,2]
[314273634,1708139455781,-151.148843,0.00049315,2]
[314273635,1708139455789,-151.148843,0.00049315,2]
[314273636,1708139455799,-151.148843,0.00049315,2]
[314273637,1708139455808,-151.148843,0.00049315,2]
[314273638,1708139455817,-151.148838,0.00049315,2]
[314273639,1708139455826,-257.694116,0.00049315,120]
[314273640,1708139455835,-257.694116,0.00049315,120]
[314273641,1708139455844,-257.694116,0.00049315,120]
[314273642,1708139455937,-257.694116,0.00049315,120]
[314273643,1708139455947,-257.694116,0.00049315,120]
[314273644,1708139455956,-257.694116,0.00049315,120]
[314273645,1708139455966,-257.694116,0.00049315,120]
[314273646,1708139455975,-257.694116,0.00049315,120]
[314273647,1708139455984,-257.694116,0.00049315,120]
[314273648,1708139455993,-257.694116,0.00049315,120]
[314273649,1708139456003,-257.694116,0.00049315,120]
[314273650,1708139456014,-257.694116,0.00049315,120]
[314273651,1708139456023,-257.694116,0.00049315,120]
[314273652,1708139456032,-257.694116,0.00049315,120]
[314273653,1708139456042,-257.694116,0.00049315,120]
[314273654,1708139456051,-257.694116,0.00049315,120]
[314273655,1708139456060,-257.694116,0.00049315,120]
[314273656,1708139456069,-257.694116,0.00049315,120]
[314273657,1708139456078,-257.694116,0.00049315,120]
[314273658,1708139456088,-257.694124,0.00049315,120]
[314273659,1708139456097,-494.205098,0.00049315,120]
[314273660,1708139456106,-494.205098,0.00049315,120]
[314273661,1708139456116,-494.205098,0.00049315,120]
[314273662,1708139456125,-494.205098,0.00049315,120]
[314273663,1708139456134,-494.205098,0.00049315,120]
[314273664,1708139456144,-494.205098,0.00049315,120]
[314273665,1708139456153,-494.205098,0.00049315,120]
[314273666,1708139456162,-494.205098,0.00049315,120]
[314273667,1708139456171,-494.205098,0.00049315,120]
[314273668,1708139456180,-494.205098,0.00049315,120]
[314273669,1708139456189,-494.205098,0.00049315,120]
[314273670,1708139456199,-494.205098,0.00049315,120]
[314273671,1708139456208,-494.205098,0.00049315,120]
[314273672,1708139456217,-494.205098,0.00049315,120]
[314273673,1708139456226,-494.205098,0.00049315,120]
[314273674,1708139456235,-494.205098,0.00049315,120]
[314273675,1708139456245,-494.205098,0.00049315,120]
[314273676,1708139456253,-494.205098,0.00049315,120]
[314273677,1708139456263,-494.205098,0.00049315,120]
[314273678,1708139456275,-494.205104,0.00049315,120]
[314273679,1708139456285,-631.162179,0.00049315,14]
[314273680,1708139456294,-631.162179,0.00049315,14]
[314273681,1708139456303,-631.162179,0.00049315,14]
[314273682,1708139456312,-631.162179,0.00049315,14]
[314273683,1708139456321,-631.162179,0.00049315,14]
[314273684,1708139456330,-631.162179,0.00049315,14]
[314273685,1708139456339,-631.162179,0.00049315,14]
[314273686,1708139456348,-631.162179,0.00049315,14]
[314273687,1708139456357,-631.162179,0.00049315,14]
[314273688,1708139456367,-631.162179,0.00049315,14]
[314273689,1708139456383,-631.162179,0.00049315,14]
[314273690,1708139456404,-631.162179,0.00049315,14]
[314273691,1708139456413,-631.162179,0.00049315,14]
[314273692,1708139456422,-631.162179,0.00049315,14]
[314273693,1708139456431,-631.162179,0.00049315,14]
[314273694,1708139456440,-631.162179,0.00049315,14]
[314273695,1708139456450,-152.35,0.00049315,2]
[314273696,1708139456459,-591.0,0.00049315,2]
[314273697,1708139456468,-152.54,0.00049315,2]
[314273698,1708139456477,-150.0,0.00049315,2]
[314273699,1708139456486,-150.0,0.00049315,2]
[314273700,1708139456496,-2290.0,0.00049316,2]
[314273701,1708139456506,-432.0,0.00049322,30]
[314273702,1708139456516,-1254.4,0.0004941,2]
[314273703,1708139456525,-151.021788,0.00049448,51]
[314273704,1708139456534,-250.0,0.000495,30]
[314273705,1708139456544,-181.0,0.00049515,60]
[314273706,1708139456553,-719.27,0.00049564,120]
[314273707,1708139456562,-739.89,0.00049589,60]
[314273708,1708139456571,-500.0,0.00049589,60]
[314273709,1708139456581,-500.0,0.00049589,60]
[314273710,1708139456590,-179.68230182,0.00049589,60]
[314273711,1708139456608,-500.0,0.00049589,2]
[314273712,1708139456637,-500.0,0.00049589,60]
[314273713,1708139456658,-500.0,0.00049589,30]
[314273714,1708139456676,-500.0,0.00049589,2]
[314273715,1708139456695,-429.34883856,0.00049589,60]
[314273716,1708139456715,-526.79084701,0.00049589,60]
[314273717,1708139456729,-500.0,0.00049589,60]
[314273718,1708139456746,-501.55656669,0.00049589,2]
[314273719,1708139456763,-500.0,0.00049589,60]
[314273720,1708139456778,-500.0,0.00049589,60]
[314273721,1708139456794,-599.78706399,0.00049589,60]
[314273722,1708139456814,-500.0,0.00049589,60]
[314273723,1708139456830,-500.0,0.00049589,60]
[314273724,1708139456846,-500.0,0.00049589,60]
[314273725,1708139456864,-500.0,0.00049589,2]
[314273726,1708139456882,-500.0,0.00049589,60]
[314273727,1708139456895,-558.07570171,0.00049589,60]
[314273728,1708139456908,-500.0,0.00049589,60]
[314273729,1708139456924,-500.0,0.00049589,60]
[314273730,1708139456945,-500.0,0.00049589,60]
[314273731,1708139456958,-500.0,0.00049589,60]
[314273732,1708139456972,-500.0,0.00049589,60]
[314273733,1708139456987,-500.0,0.00049589,60]
[314273734,1708139457003,-265.09290957,0.00049589,60]
[314273735,1708139457020,-500.0,0.00049589,60]
[314273736,1708139457034,-615.82,0.00049589,60]
[314273737,1708139457048,-500.0,0.00049589,60]
[314273738,1708139457062,-500.0,0.00049589,60]
[314273739,1708139457075,-500.0,0.00049589,60]
[314273740,1708139457089,-500.0,0.00049589,2]
[314273741,1708139457104,-500.0,0.00049589,60]
[314273742,1708139457118,-500.0,0.00049589,60]
[314273743,1708139457132,-500.0,0.00049589,60]
[314273744,1708139457145,-500.0,0.00049589,60]
[314273745,1708139457159,-500.0,0.00049589,60]
[314273746,1708139457172,-521.38,0.00049589,2]
[314273747,1708139457185,-500.0,0.00049589,60]